bitfinex-derivatives/quotes_ETHF0:USTF0_20250106
["timestamp","ask_amount","ask_price","bid_price","bid_amount"]
[1736121600389,3.21973996,3636.5,3636.4,3.2078]
[1736121600582,5.36219387,3637.0,3636.4,3.2078]
[1736121600780,5.36219387,3637.0,3636.8,3.2078]
[1736121603990,0.4486,3637.1,3636.8,7.52917676]
[1736121605593,0.4486,3637.1,3636.8,3.2078]
[1736121605784,0.8188,3637.3,3636.8,3.2078]
[1736121605982,1.2399,3637.3,3636.8,3.2078]
[1736121606394,3.22678391,3637.4,3636.8,3.2078]
[1736121606592,2.98981482,3637.4,3637.2,3.2078]
[1736121606795,2.31351482,3637.4,3637.3,0.8589]
[1736121607091,2.31351482,3637.6,3637.3,1.3083]
[1736121608391,1.25796499,3637.6,3637.3,6.3083]
[1736121608596,0.92303856,3637.8,3637.4,0.2752]
[1736121608895,5.04932887,3638.0,3637.7,3.2078]
[1736121609096,0.8684,3639.0,3637.7,3.2078]
[1736121609388,0.8684,3639.0,3638.8,3.2078]
[1736121609592,0.4242,3638.9,3638.4,3.2078]
[1736121609791,0.4242,3638.9,3638.4,1.8558]
[1736121609992,0.4242,3638.9,3638.0,3.2078]
[1736121610499,0.4242,3638.9,3638.2,4.30714656]
[1736121610891,0.4242,3638.9,3638.4,3.2078]
[1736121612687,0.8684,3639.0,3638.4,3.2078]
[1736121613700,0.8684,3639.0,3638.9,3.2078]
[1736121614091,0.4502,3639.3,3638.9,3.2078]
[1736121614295,1.3114,3639.3,3638.9,3.2078]
[1736121615597,1.3114,3639.3,3639.0,1.087]
[1736121616297,3.2078,3640.1,3639.0,1.087]
[1736121616598,1.2568,3640.0,3639.6,3.2078]
[1736121616900,1.2568,3640.0,3639.7,1.087]
[1736121617701,0.8473,3640.0,3639.7,1.087]
[1736121618407,4.0428,3640.7,3639.8,0.8244]
[1736121619101,0.835,3640.7,3640.0,3.2078]
[1736121619601,0.835,3640.7,3639.8,0.8244]
[1736121619602,3.2078,3641.2,3640.4,3.2078]
[1736121619795,0.4197,3641.1,3640.5,1.5035]
[1736121620498,0.4153,3641.0,3640.5,1.5035]
[1736121620700,0.4153,3641.0,3640.5,0.4165]
[1736121620999,3.2078,3640.6,3639.9,3.2078]
[1736121621205,0.8579,3640.5,3639.6,1.087]
[1736121624702,0.8579,3640.5,3639.5,3.2078]
[1736121624904,0.8579,3640.5,3639.6,1.087]
[1736121625804,3.2078,3640.2,3639.6,1.087]
[1736121626002,0.412,3640.1,3639.6,1.087]
[1736121626205,3.2078,3639.8,3639.5,1.087]
[1736121626404,0.4277,3639.7,3639.2,1.087]
[1736121626612,0.867,3639.7,3639.2,1.087]
[1736121629208,0.867,3639.7,3639.1,3.2078]
[1736121629406,0.412,3640.1,3639.5,3.2078]
[1736121629609,1.2742,3640.1,3639.5,3.2078]
[1736121629808,1.2742,3640.1,3639.6,0.4172]
[1736121630513,1.2742,3640.1,3640.0,0.2473]
[1736121632709,1.2742,3640.1,3639.9,1.087]
[1736121632924,1.2742,3640.1,3639.6,0.24732]
[1736121632925,4.482,3640.1,3639.6,0.24732]
[1736121633104,4.482,3640.1,3639.7,0.24732]
[1736121634714,4.482,3640.1,3639.4,1.087]
[1736121634919,3.2078,3639.7,3639.1,4.2948]
[1736121635213,3.45513,3639.7,3639.2,0.24735]
[1736121635612,0.24736,3639.2,3638.7,0.24739]
[1736121635812,0.8468,3639.1,3638.6,0.24739]
[1736121636017,1.52366,3639.1,3638.6,0.24739]
[1736121636218,1.2763,3639.1,3638.8,0.24738]
[1736121636620,1.2763,3639.1,3638.6,0.2474]
[1736121636820,1.2763,3639.1,3638.7,0.24739]
[1736121637409,1.2763,3639.1,3638.8,0.24738]
[1736121637614,1.2763,3639.1,3638.9,0.24738]
[1736121638124,1.2763,3639.1,3638.8,0.24738]
[1736121638621,1.2763,3639.1,3638.7,0.24739]
[1736121638919,1.52366,3639.1,3638.5,1.3344]
[1736121639123,1.52366,3639.1,3638.6,0.2474]
[1736121639312,1.52366,3639.1,3638.5,1.3344]
[1736121639512,1.52366,3639.1,3638.6,0.2474]
[1736121640619,1.2763,3639.1,3638.6,0.2474]
[1736121640913,1.2763,3639.1,3638.5,1.087]
[1736121641128,1.2763,3639.1,3638.6,0.24739]
[1736121642317,1.2763,3639.1,3638.5,1.087]
[1736121642712,1.2763,3639.1,3638.6,0.24739]
[1736121643416,1.2763,3639.1,3638.5,1.087]
[1736121643620,3.2078,3638.9,3638.3,0.24741]
[1736121643825,3.2078,3638.9,3638.1,3.2078]
[1736121643826,0.2474,3638.6,3638.1,3.2078]
[1736121644021,0.4386,3638.5,3638.1,3.45523]
[1736121644215,0.4067,3638.4,3637.7,0.24746]
[1736121644422,0.24742,3638.3,3637.8,0.24745]
[1736121644617,0.65411,3638.4,3637.9,0.24744]
[1736121645730,0.4067,3638.4,3637.9,0.24744]
[1736121645930,0.4067,3638.4,3638.0,0.24743]
[1736121647524,0.4067,3638.4,3637.6,4.3098]
[1736121647525,0.4141,3638.3,3637.6,4.3098]
[1736121648320,0.4141,3638.3,3638.0,0.24743]
[1736121650418,0.66152,3638.3,3638.0,0.24743]
[1736121650617,0.4141,3638.3,3637.6,4.3098]
[1736121650927,0.4141,3638.3,3638.1,0.24743]
[1736121651124,0.4141,3638.3,3637.6,4.3098]
[1736121651325,0.4141,3638.3,3638.1,0.24743]
[1736121651521,3.2078,3638.5,3638.4,0.24741]
[1736121654224,3.2078,3638.5,3638.1,0.8545]
[1736121654428,0.4452,3638.4,3638.2,0.24742]
[1736121654627,0.8706,3638.3,3638.2,0.24742]
[1736121656138,0.24743,3638.2,3637.9,0.24744]
[1736121656631,0.24743,3638.1,3637.8,0.24745]
[1736121656933,0.24745,3637.9,3637.6,0.24746]
[1736121657427,0.421,3637.8,3637.6,0.24746]
[1736121657635,0.4471,3637.7,3637.6,0.24746]
[1736121658528,3.6549,3637.7,3636.9,0.61878]
[1736121658832,0.4192,3637.6,3637.4,0.24748]
[1736121659332,0.4192,3637.6,3637.5,0.24747]
[1736121661524,3.6549,3637.7,3637.6,0.24747]
[1736121662428,3.6549,3637.7,3637.5,0.24747]
[1736121663035,0.4375,3637.6,3637.5,0.24747]
[1736121666036,0.4375,3637.6,3637.1,1.103]
[1736121666037,0.4375,3637.6,3637.4,0.24747]
[1736121666633,0.4375,3637.6,3637.5,0.24747]
[1736121668040,0.4375,3637.6,3637.1,1.103]
[1736121668236,0.4375,3637.6,3637.4,0.24748]
[1736121668633,3.2078,3637.7,3637.1,1.103]
[1736121668839,3.2078,3637.7,3637.6,0.24747]
[1736121672436,3.2078,3638.1,3638.0,0.24744]
[1736121672743,3.2078,3638.5,3638.3,0.24741]
[1736121673042,3.2078,3638.5,3638.4,0.24741]
[1736121673737,3.2078,3638.5,3638.0,1.103]
[1736121673939,3.45521,3638.5,3638.1,0.24743]
[1736121674137,3.2078,3638.5,3638.0,1.103]
[1736121674339,3.21079779,3639.3,3638.1,3.2078]
[1736121674533,3.21079779,3639.3,3638.0,1.103]
[1736121674534,3.21079779,3639.2,3639.1,0.24736]
[1736121674838,3.21079779,3639.2,3639.1,2.45624557]
[1736121675845,3.21079779,3639.2,3639.1,0.66566]
[1736121676037,3.6544,3640.0,3639.9,0.24731]
[1736121676241,3.2078,3640.0,3639.9,3.55719557]
[1736121677546,3.2078,3640.0,3639.8,0.24732]
[1736121677746,3.2078,3640.0,3639.9,1.34831]
[1736121677941,3.2078,3640.0,3639.9,1.101]
[1736121678241,3.2078,3640.0,3639.9,1.34831]
[1736121678444,3.2078,3640.0,3639.9,3.55719557]
[1736121678745,3.2078,3640.5,3640.1,0.24729]
[1736121679142,3.2078,3640.5,3640.0,0.2473]
[1736121679347,3.2078,3640.5,3640.2,2.20888557]
[1736121679647,3.2078,3640.5,3640.4,0.24728]
[1736121679840,3.2078,3640.5,3640.3,0.24728]
[1736121680643,3.2078,3640.5,3640.2,2.45617557]
[1736121681141,3.2078,3640.5,3640.1,0.24729]
[1736121682146,3.2078,3640.5,3640.2,0.24729]
[1736121683446,3.2078,3640.5,3640.0,2.20888557]
[1736121683643,3.2078,3640.5,3640.3,0.24728]
[1736121685353,0.4398,3640.6,3640.0,2.20888557]
[1736121685745,0.4398,3640.6,3640.5,0.24727]
[1736121686247,3.2078,3640.9,3640.4,0.4256]
[1736121686444,0.4403,3641.2,3640.8,2.20888557]
[1736121686652,0.4403,3641.2,3641.1,0.24723]
[1736121687149,0.4403,3641.2,3641.0,0.24723]
[1736121687750,0.4403,3641.2,3641.1,0.24723]
[1736121691452,3.2078,3641.4,3641.3,0.24721]
[1736121691845,3.45501,3641.4,3641.1,0.24722]
[1736121692046,3.2078,3641.4,3641.2,0.24722]
[1736121693855,3.45501,3641.4,3641.2,0.24722]
[1736121694050,3.2078,3641.4,3640.8,3.30888557]
[1736121694254,3.2078,3641.0,3640.8,3.30888557]
[1736121694452,0.4248,3640.9,3640.8,3.55613557]
[1736121694649,0.4248,3640.9,3640.8,2.45613557]
[1736121694853,0.8477,3640.9,3640.8,2.45613557]
[1736121696154,3.2078,3641.4,3640.8,2.20888557]
[1736121696458,3.2078,3641.4,3641.3,0.24721]
[1736121700761,3.2078,3641.4,3640.5,6.51668557]
[1736121701164,0.24723,3641.2,3641.0,0.24723]
[1736121701458,3.45501,3641.4,3641.2,0.24722]
[1736121702259,3.2078,3641.4,3641.3,0.24721]
[1736121704065,3.45501,3641.4,3641.2,0.24722]
[1736121704266,3.2078,3641.4,3641.3,0.24721]
[1736121704770,3.45501,3641.4,3641.2,0.24722]
[1736121705268,3.45501,3641.4,3641.3,0.24721]
[1736121706371,3.45501,3641.4,3641.2,0.24722]
[1736121707559,3.45501,3641.4,3641.3,0.24721]
[1736121707866,3.2078,3641.4,3641.3,0.24721]
[1736121715678,3.2078,3642.0,3641.9,0.24717]
[1736121715971,3.2078,3642.0,3641.9,2.45605557]
[1736121716173,3.2078,3642.0,3641.9,3.55605557]
[1736121717568,3.2078,3642.0,3641.3,3.82584]
[1736121717569,0.24718,3641.9,3641.6,0.24719]
[1736121717776,0.24718,3641.8,3641.6,0.24719]
[1736121718081,0.4216,3641.8,3641.6,2.45607557]
[1736121718573,0.24719,3641.7,3641.6,2.20888557]
[1736121718780,0.24721,3641.4,3641.2,1.1]
[1736121718971,0.4209,3641.7,3641.2,1.34722]
[1736121718972,0.4255,3641.3,3641.2,1.34722]
[1736121719371,0.4255,3641.3,3641.2,0.24722]
[1736121720988,0.67272,3641.3,3640.8,4.3078]
[1736121721181,0.4255,3641.3,3640.9,0.24724]
[1736121721388,0.67272,3641.3,3640.9,0.24724]
[1736121722087,0.67272,3641.3,3640.8,4.3078]
[1736121722291,0.4255,3641.3,3641.0,0.24723]
[1736121722481,0.4255,3641.3,3641.0,2.45611557]
[1736121723184,3.6333,3641.3,3641.0,2.20888557]
[1736121723389,2.14278586,3641.4,3641.0,2.20888557]
[1736121723591,2.14278586,3641.4,3641.3,2.45609557]
[1736121724483,6.18558586,3641.7,3641.5,0.2472]
[1736121724681,6.18558586,3641.7,3641.4,0.8459]
[1736121724890,6.18558586,3641.7,3641.4,1.09311]
[1736121725185,6.18558586,3641.7,3641.5,0.2472]
[1736121725991,4.0428,3641.7,3641.5,0.2472]
[1736121727292,6.18558586,3641.7,3641.5,0.2472]
[1736121727892,6.18558586,3641.7,3641.6,0.24719]
[1736121728092,5.76468586,3641.7,3641.6,0.24719]
[1736121728493,5.76468586,3641.7,3641.4,0.8459]
[1736121728692,5.76468586,3641.7,3641.6,0.24719]
[1736121729391,5.76468586,3641.7,3641.5,0.2472]
[1736121729592,0.00320976,3641.6,3641.5,0.2472]
[1736121732193,2.14599562,3641.6,3641.5,0.2472]
[1736121732393,2.14599562,3641.6,3641.5,1.3472]
[1736121733895,0.00320976,3641.6,3641.5,6.03368201]
[1736121734794,0.00320976,3641.6,3641.5,12.50788945]
[1736121737700,2.14278586,3642.0,3641.9,0.24717]
[1736121738397,2.14278586,3642.0,3641.9,0.69297]
[1736121738701,0.8843,3642.5,3641.9,0.4458]
[1736121738702,2.14278586,3642.3,3641.9,0.4458]
[1736121738897,2.14278586,3642.3,3642.2,0.24715]
[1736121739093,2.14278586,3642.3,3642.2,1.33715]
[1736121740094,2.14278586,3642.4,3642.2,1.09]
[1736121740407,2.14278586,3642.4,3642.3,0.18835209]
[1736121742503,3.02708586,3642.5,3642.4,0.24714]
[1736121745401,0.24715,3642.3,3642.1,0.24715]
[1736121745606,3.6474,3642.2,3642.1,0.24715]
[1736121745810,0.24717,3642.0,3641.9,4.31270694]
[1736121746304,3.6474,3642.2,3641.9,4.31270694]
[1736121746506,0.24716,3642.1,3641.9,4.55987694]
[1736121746707,0.24716,3642.1,3642.0,0.24716]
[1736121747096,0.24716,3642.1,3641.9,0.24717]
[1736121747901,3.21079779,3642.1,3642.0,0.24717]
[1736121749603,3.21079779,3642.1,3641.8,2.20888557]
[1736121749807,3.45795779,3642.1,3641.9,0.24717]
[1736121750411,3.2078,3642.0,3641.9,0.24717]
[1736121752309,3.45497,3642.0,3641.8,2.45606557]
[1736121752509,3.2078,3642.0,3641.9,0.24717]
[1736121753609,3.21079779,3642.1,3641.8,2.20888557]
[1736121753917,3.21079779,3642.1,3642.0,0.24717]
[1736121755014,3.2078,3642.4,3641.9,5.19110694]
[1736121755209,3.2078,3642.4,3642.3,2.45602557]
[1736121762718,5.36356121,3642.4,3642.3,2.45602557]
[1736121762918,5.36356121,3642.4,3642.3,2.87202557]
[1736121763915,3.21079779,3642.6,3642.3,2.62488557]
[1736121764220,5.79986121,3642.9,3642.8,0.24711]
[1736121764521,5.79986121,3642.9,3642.8,2.45599557]
[1736121765423,3.6441,3642.9,3642.8,2.45599557]
[1736121771721,3.6441,3642.9,3642.5,1.081]
[1736121771930,3.89121,3642.9,3642.6,0.24712]
[1736121772631,3.6441,3642.9,3642.5,1.081]
[1736121773237,3.6441,3642.9,3642.3,4.55984694]
[1736121773238,0.24713,3642.6,3642.3,4.55984694]
[1736121773427,4.0568,3642.5,3642.3,0.24714]
[1736121773836,0.4147,3642.4,3642.3,0.24714]
[1736121777638,5.36356121,3642.5,3642.4,0.24714]
[1736121778646,5.81196121,3642.5,3642.4,0.24714]
[1736121778944,3.6562,3642.5,3642.4,0.24714]
[1736121782946,0.4484,3642.5,3642.4,0.24714]
[1736121784456,5.36356121,3642.7,3642.6,0.24712]
[1736121785057,2.15576121,3642.7,3642.6,0.24712]
[1736121785350,2.15576121,3642.7,3642.6,1.09872]
[1736121785747,2.15576121,3642.7,3642.6,1.51462]
[1736121787054,0.8351,3643.2,3643.1,0.24709]
[1736121789153,0.8351,3643.2,3642.9,1.081]
[1736121789154,1.08219,3643.2,3642.9,1.081]
[1736121789452,3.2078,3643.1,3642.9,1.081]
[1736121789648,0.4316,3643.0,3642.9,1.081]
[1736121790958,0.4316,3643.0,3642.7,2.20888557]
[1736121791252,0.4316,3643.0,3642.9,0.2471]
[1736121795055,0.4316,3643.0,3642.7,2.20888557]
[1736121795056,2.58736121,3643.0,3642.7,2.20888557]
[1736121795257,2.58736121,3643.0,3642.7,2.45599557]
[1736121796557,2.58736121,3643.0,3642.8,0.24711]
[1736121796961,2.58736121,3643.0,3642.7,2.20888557]
[1736121796962,2.58736121,3643.0,3642.9,0.2471]
[1736121797757,2.15576121,3643.0,3642.9,0.2471]
[1736121798256,2.15576121,3643.0,3642.8,0.6666]
[1736121798455,2.15576121,3643.0,3642.8,2.87548557]
[1736121798759,0.4419,3642.9,3642.8,2.87548557]
[1736121799159,0.4419,3642.9,3642.8,2.20888557]
[1736121799658,2.59766121,3642.9,3642.8,2.20888557]
[1736121799853,2.59766121,3642.9,3642.7,0.24712]
[1736121800162,2.59766121,3642.9,3642.5,4.30647074]
[1736121800351,3.45492,3642.6,3642.5,4.30647074]
[1736121800858,3.2078,3642.6,3642.5,6.76248631]
[1736121801053,3.2078,3642.6,3642.5,3.34261557]
[1736121803758,3.2078,3642.6,3642.5,7.64908631]
[1736121804960,3.2078,3642.6,3642.5,8.02575369]
[1736121805359,3.2078,3642.6,3642.5,7.13915369]
[1736121805660,3.2078,3642.6,3642.5,4.68313812]
[1736121806457,5.79136204,3642.6,3642.3,6.47420744]
[1736121806759,5.79136204,3642.6,3642.4,0.24713]
[1736121807357,5.79136204,3642.6,3642.3,6.72134744]
[1736121807558,5.79136204,3642.6,3642.4,0.24713]
[1736121807754,3.6333,3642.6,3642.2,3.28288557]
[1736121807959,3.6333,3642.6,3642.5,0.24713]
[1736121809259,3.6333,3642.6,3642.4,0.24713]
[1736121810460,3.6333,3642.6,3642.5,0.24713]
[1736121813957,0.24714,3642.4,3642.2,2.45603557]
[1736121814162,0.4352,3642.3,3642.2,2.45603557]
[1736121814361,0.8455,3642.3,3642.2,2.45603557]
[1736121814764,3.00364564,3642.3,3642.2,2.45603557]
[1736121819365,3.00364564,3642.3,3642.2,2.20888557]
[1736121819659,0.24716,3642.1,3642.0,4.31414698]
[1736121819866,3.45496,3642.1,3642.0,4.31414698]
[1736121820657,0.24717,3641.9,3641.8,4.31414698]
[1736121822267,0.24717,3641.9,3641.7,0.24718]
[1736121822462,0.429,3641.8,3641.7,0.24718]
[1736121823365,2.58556759,3641.8,3641.4,0.2472]
[1736121823564,3.6459,3641.7,3641.3,4.31414698]
[1736121823774,0.2472,3641.4,3641.3,4.31414698]
[1736121824264,3.6459,3641.7,3641.3,4.31414698]
[1736121824465,0.2472,3641.5,3641.3,4.56135698]
[1736121824773,2.15656759,3641.4,3641.3,2.45609557]
[1736121825964,5.80246759,3641.7,3641.6,0.24719]
[1736121826166,5.36436759,3641.7,3641.6,2.45607557]
[1736121826571,2.15656759,3641.7,3641.6,2.45607557]
[1736121827072,2.15656759,3642.1,3642.0,0.24716]
[1736121827268,2.15656759,3642.1,3642.0,3.52604557]
[1736121827866,2.15656759,3642.1,3642.0,3.27888557]
[1736121828064,2.15656759,3642.1,3642.0,1.07]
[1736121828065,4.33176,3642.1,3642.0,1.07]
[1736121829472,6.48832759,3642.1,3642.0,1.07]
[1736121831463,6.24116759,3642.1,3642.0,1.31716]
[1736121831666,6.24116759,3642.1,3642.0,1.07]
[1736121831865,6.48832759,3642.1,3642.0,1.07]
[1736121834076,0.24718,3641.8,3641.7,0.4163]
[1736121834277,0.24719,3641.7,3641.5,0.24719]
[1736121834569,6.24116759,3642.1,3641.4,2.20888557]
[1736121834570,3.2078,3641.6,3641.4,2.20888557]
[1736121834763,0.8556,3641.5,3641.4,2.45608557]
[1736121834971,0.24721,3641.4,3641.2,0.66131]
[1736121835163,0.8556,3641.5,3641.2,0.66131]
[1736121835364,0.24721,3641.3,3641.2,0.4141]
[1736121835570,0.24722,3641.2,3641.1,6.52303255]
[1736121835772,3.45502,3641.2,3641.1,6.52303255]
[1736121835969,3.2078,3641.2,3641.1,6.52303255]
[1736121836371,3.2078,3641.2,3641.1,2.20888557]
[1736121837171,0.24723,3641.0,3640.8,2.62298557]
[1736121837373,3.2078,3641.2,3640.8,2.62298557]
[1736121837573,3.2078,3641.2,3640.8,2.87022557]
[1736121837574,0.4326,3640.9,3640.8,2.87022557]
[1736121839677,0.4326,3640.9,3640.8,2.62298557]
[1736121840576,0.4326,3640.9,3640.8,2.87022557]
[1736121840776,0.4326,3640.9,3640.8,2.62298557]
[1736121843381,0.4326,3640.9,3640.8,2.45612557]
[1736121843682,2.15656759,3641.3,3641.0,0.24723]
[1736121843879,0.4218,3641.2,3641.0,0.24723]
[1736121844076,2.15656759,3641.3,3641.1,2.20888557]
[1736121844280,2.15656759,3641.3,3641.2,1.10762]
[1736121844483,2.15656759,3641.3,3639.7,19.32084801]
[1736121844685,3.2078,3640.8,3640.2,3.06928557]
[1736121844983,3.2078,3640.8,3640.3,0.24727]
[1736121844984,1.50955,3640.7,3640.3,0.24727]
[1736121845481,1.50955,3640.7,3640.4,0.24727]
[1736121845671,1.2623,3640.7,3640.4,0.24727]
[1736121845871,1.2623,3640.7,3640.5,2.20888557]
[1736121845872,0.8429,3640.7,3640.5,2.20888557]
[1736121846075,0.4194,3641.1,3640.5,2.20888557]
[1736121846281,0.24724,3641.0,3640.8,2.20888557]
[1736121846480,2.40380759,3641.0,3640.8,2.20888557]
[1736121846680,2.40380759,3641.0,3640.8,2.45612557]
[1736121846879,2.15656759,3641.0,3640.8,2.20888557]
[1736121847081,2.15656759,3641.0,3640.9,0.24724]
[1736121847585,2.40379759,3641.0,3640.9,0.24724]
[1736121847884,0.24723,3641.0,3640.8,2.20888557]
[1736121848085,0.24723,3641.0,3640.8,2.45612557]
[1736121848685,1.2885,3641.1,3640.8,2.45612557]
[1736121848886,0.24723,3641.0,3640.8,2.45612557]
[1736121849386,0.24724,3640.9,3640.8,2.20888557]
[1736121851286,3.45504,3640.9,3640.8,2.20888557]
[1736121851881,0.24725,3640.8,3640.6,0.24725]
[1736121852491,3.2078,3640.9,3640.2,3.06928557]
[1736121852492,0.24727,3640.5,3640.2,3.06928557]
[1736121852693,0.4073,3640.4,3640.2,3.06928557]
[1736121853885,0.4073,3640.4,3640.3,0.24728]
[1736121854998,0.4073,3640.4,3640.2,3.06928557]
[1736121855200,0.4073,3640.4,3640.2,3.31656557]
[1736121857201,0.65457,3640.4,3640.2,3.06928557]
[1736121857403,0.8298,3640.4,3640.2,3.06928557]
[1736121858101,0.8298,3640.4,3640.2,3.31656557]
[1736121858497,0.8298,3640.4,3640.2,3.06928557]
[1736121858699,1.07707,3640.4,3640.2,3.06928557]
[1736121861801,0.8298,3640.4,3640.2,3.06928557]
[1736121862006,0.24728,3640.3,3640.2,3.06928557]
[1736121862206,0.8298,3640.4,3640.2,3.06928557]
[1736121862207,1.07707,3640.4,3640.2,3.06928557]
[1736121862601,0.1656,3640.3,3640.2,3.06928557]
[1736121865103,0.1656,3640.3,3640.2,3.31656557]
[1736121865604,0.41288,3640.3,3640.2,2.20888557]
[1736121865807,0.1656,3640.3,3640.2,2.45616557]
[1736121867511,0.1656,3640.3,3640.2,0.24728]
[1736121867712,0.1656,3640.3,3640.2,2.45616557]
[1736121869111,0.1656,3640.3,3640.2,3.52516557]
[1736121872808,0.1656,3640.3,3640.2,3.27788557]
[1736121873513,0.41288,3640.3,3640.2,3.27788557]
[1736121873812,0.41288,3640.3,3640.2,2.20888557]
[1736121874812,0.1656,3640.3,3640.0,2.1445]
[1736121875207,0.41288,3640.3,3640.0,2.1445]
[1736121875613,0.1656,3640.3,3640.0,1.8972]
[1736121875809,0.1656,3640.3,3640.2,2.45616557]
[1736121879918,0.1656,3640.3,3640.1,4.56142698]
[1736121880117,0.4342,3640.2,3640.1,4.56142698]
[1736121880423,0.4342,3640.2,3640.1,4.31414698]
[1736121881018,2.59076759,3640.2,3640.1,4.56143698]
[1736121881330,6.04584759,3640.2,3640.1,4.31414698]
[1736121882621,0.2473,3639.9,3639.7,4.31414698]
[1736121882821,3.6288,3639.8,3639.7,4.31414698]
[1736121884223,3.6288,3639.8,3639.6,4.31414698]
[1736121884522,3.23992312,3639.9,3639.6,4.31414698]
[1736121884824,3.23992312,3639.9,3639.8,0.24731]
[1736121885516,3.23992312,3640.0,3639.6,4.31414698]
[1736121885716,3.23992312,3640.0,3639.9,0.2473]
[1736121886618,3.23992312,3640.0,3639.6,4.31414698]
[1736121886918,3.23992312,3640.0,3639.9,0.2473]
[1736121890218,3.23992312,3640.0,3639.6,4.31414698]
[1736121890219,3.23992312,3640.0,3639.8,0.2473]
[1736121891520,2.15880268,3639.9,3639.6,4.31414698]
[1736121891720,2.15880268,3639.9,3639.8,2.45619557]
[1736121894127,2.15880268,3639.9,3639.6,4.31414698]
[1736121894328,0.24731,3639.8,3639.6,4.31414698]
[1736121894723,0.4474,3639.7,3639.6,4.31414698]
[1736121895132,0.4474,3639.7,3639.5,6.52303255]
[1736121895424,0.9829,3639.6,3639.5,6.77036255]
[1736121895625,0.9829,3639.6,3639.5,4.31414698]
[1736121895827,1.23022,3639.6,3639.5,4.31414698]
[1736121896922,0.9829,3639.6,3639.2,4.31414698]
[1736121897128,0.24734,3639.3,3639.2,4.31414698]
[1736121897520,0.69144,3639.3,3639.2,4.31414698]
[1736121898236,0.69144,3639.3,3639.0,6.47420744]
[1736121898237,0.4441,3639.3,3639.0,6.47420744]
[1736121898425,0.24735,3639.2,3638.9,0.24737]
[1736121898832,0.4407,3639.1,3638.8,2.88575557]
[1736121899129,0.4284,3639.0,3638.9,0.24737]
[1736121899433,0.4284,3639.0,3638.8,2.63838557]
[1736121899629,3.6362,3639.0,3638.8,2.63838557]
[1736121900228,3.6362,3639.0,3638.8,2.88575557]
[1736121900938,3.6362,3639.0,3638.9,0.24737]
[1736121901434,0.4284,3639.0,3638.9,0.24737]
[1736121901629,2.15739324,3639.2,3638.8,2.63838557]
[1736121901838,2.15739324,3639.2,3639.1,2.45623557]
[1736121902940,2.32299324,3639.6,3639.5,0.24733]
[1736121903235,2.32299324,3639.6,3639.5,2.45621557]
[1736121903735,2.32299324,3639.6,3639.5,3.29611557]
[1736121904335,0.1656,3639.6,3639.5,3.29611557]
[1736121905837,0.1656,3639.6,3639.5,7.97631936]
[1736121908136,3.2078,3640.2,3639.5,7.72898936]
[1736121908336,3.2078,3640.2,3640.1,2.45617557]
[1736121908532,3.2078,3640.2,3640.1,3.52617557]
[1736121910336,3.2078,3640.2,3640.1,1.31729]
[1736121910540,3.45508,3640.2,3640.1,1.07]
[1736121910734,3.2078,3640.2,3640.1,1.07]
[1736121912240,3.2078,3640.2,3640.1,1.31729]
[1736121912636,3.2078,3640.2,3640.1,1.07]
[1736121912940,3.2078,3640.2,3640.0,0.24729]
[1736121913840,3.2078,3640.2,3640.1,0.24729]
[1736121914235,3.2078,3640.2,3639.8,3.27888557]
[1736121914436,3.2078,3640.2,3640.0,0.24729]
[1736121914934,3.2078,3640.2,3640.1,2.45617557]
[1736121920642,3.44129324,3640.5,3640.4,0.24727]
[1736121920846,3.44129324,3640.5,3640.4,2.45615557]
[1736121921846,1.2839,3640.5,3640.4,2.45615557]
[1736121922242,1.2839,3640.5,3640.4,2.20888557]
[1736121922443,1.2839,3640.5,3640.4,2.45615557]
[1736121923751,1.2839,3640.5,3640.4,2.20888557]
[1736121923951,1.2839,3640.5,3640.4,2.45615557]
[1736121924643,1.2839,3640.5,3640.4,2.20888557]
[1736121925357,1.2839,3640.5,3640.4,2.45615557]
[1736121926157,0.24727,3640.3,3640.0,4.55744774]
[1736121926353,1.2839,3640.5,3640.0,4.31015774]
[1736121926354,0.24729,3640.1,3640.0,4.31015774]
[1736121926851,3.45509,3640.2,3640.0,4.31015774]
[1736121927349,3.45509,3640.2,3639.9,4.55745774]
[1736121928153,3.45508,3640.2,3639.9,4.31015774]
[1736121928352,3.45508,3640.2,3639.9,4.55745774]
[1736121928549,5.61247324,3640.2,3639.8,2.45618557]
[1736121929052,5.36519324,3640.2,3639.8,2.45618557]
[1736121929352,0.24729,3640.1,3639.8,2.45618557]
[1736121929853,0.4121,3640.0,3639.9,0.2473]
[1736121932048,0.4121,3640.0,3639.8,2.45618557]
[1736121932254,0.855,3639.9,3639.8,2.45618557]
[1736121932856,0.855,3639.9,3639.8,2.45619557]
[1736121933149,0.855,3639.9,3639.8,2.20888557]
[1736121933355,0.855,3639.9,3639.8,2.45619557]
[1736121933752,0.855,3639.9,3639.8,2.20888557]
[1736121934151,1.1023,3639.9,3639.6,1.31631]
[1736121934351,3.2078,3639.8,3639.5,4.31015774]
[1736121934557,0.24732,3639.6,3639.5,4.31015774]
[1736121934759,0.24732,3639.6,3639.5,0.20755775]
[1736121935054,0.24733,3639.5,3639.4,0.20755775]
[1736121935447,0.24733,3639.5,3639.3,6.47420744]
[1736121935448,0.24733,3639.4,3639.3,6.47420744]
[1736121935650,3.45513,3639.4,3639.3,3.76940744]
[1736121935853,8.45513,3639.4,3639.3,3.47120744]
[1736121936257,3.45513,3639.4,3639.3,3.47120744]
[1736121936550,6.89823375,3639.4,3638.7,0.24739]
[1736121936750,3.2078,3638.9,3638.7,0.24739]
[1736121936956,3.45518,3638.9,3638.7,0.24739]
[1736121937157,3.2078,3638.9,3638.6,2.63518557]
[1736121937550,0.24739,3638.8,3638.6,2.88258557]
[1736121937752,0.24739,3638.7,3638.6,2.63518557]
[1736121937953,2.40308013,3638.8,3638.6,2.88258557]
[1736121939257,0.24739,3638.8,3638.6,2.88258557]
[1736121940254,5.36349013,3638.9,3638.6,2.63518557]